[Event "85th Tata Steel Challengers 2023"]
[Site "Wijk aan Zee"]
[Date "2023.01.17"]
[Round "4.2"]
[White "Ivic, Velimir"]
[Black "Vaishali, Rameshbabu"]
[Result "1-0"]
[ECO "B45"]
[WhiteElo "2585"]
[BlackElo "2425"]
[Annotator "TA"]
[PlyCount "93"]
[EventDate "2023.01.10"]
[EventType "tourn"]
[EventCountry "NED"]
[SourceTitle "playchess.com"]
[Source "ChessBase"]
[SourceQuality "1"]
[TimeControl "40/6000+30:30/3000+30:900+30"]

{[%evp 35,93,16,16,27,20,26,17,30,19,19,28,6,123,162,160,112,242,54,54,54,54,54,54,54,54,54,54,0,0,0,0,0,0,0,0,0,304,304,304,304,415,403,347,317,314,279,29982,29983,29983,1200,29984,29985,29988,29989,29989,29973,29990,29991,29991,29992]} 1. e4 {[%emt 0:00:12]} c5 {[%emt 0:00:36]} 2. Nf3 {[%emt 0:00:09]} e6 {[%emt 0:00:05]} 3. d4 {[%emt 0:01:15]} cxd4 {[%emt 0:00:03]} 4. Nxd4 {[%emt 0:00:06]} Nf6 {[%emt 0:00:03]} 5. Nc3 {[%emt 0:00:16]} Nc6 {[%emt 0:00:06]} 6. Nxc6 {[%emt 0:07:24]} bxc6 {[%emt 0:00:02]} 7. e5 {[%emt 0:00:06]} Nd5 {[%emt 0:00:04]} 8. Ne4 {[%emt 0:00:06]} Qc7 {[%emt 0:00:13]} 9. f4 {[%emt 0:00:12]} Qb6 {[%emt 0:00:10]} 10. c4 {[%emt 0:06:41]} Bb4+ {[%emt 0:00:10]} 11. Ke2 {[%emt 0:00:07]} f5 {[%emt 0:00:14]} 12. Nf2 {[%emt 0:00:50]} Ba6 {[%emt 0:00:12]} 13. Kf3 {[%emt 0:00:08]} Ne7 {[%emt 0:00:08]} 14. Be3 {[%emt 0:00:06]} Bc5 {[%emt 0:00:08]} 15. Bxc5 {[%emt 0:00:07]} Qxc5 {[%emt 0:00:03]} 16. Qd6 {[%emt 0:00:11]} Qb6 {[%emt 0:00:33]} 17. b3 {[%emt 0:06:52]} c5 {[%emt 0:01:11]} 18. Rd1 {[%emt 0:02:28]} Bb7+ {[%emt 0:01:07]} (18... Qxd6 {simplifies} 19. exd6 Bb7+ 20. Ke3 Ng6) 19. Ke3 $1 {[%emt 0:02:21] The main line 19.Ke3 scores better than 19.Kg3. B45: Sicilian Four Knights.} Qxd6 {[%emt 0:14:09] is the legacy move (19...Kf7).} 20. exd6 {[%emt 0:16:39]} Ng6 {[%emt 0:14:17]} 21. Nd3 {[%emt 0:01:09] The position is equal.} Rc8 {[%emt 0:00:07]} 22. h4 {[%emt 0:04:41]} h5 {[%emt 0:05:40]} 23. Be2 {[%emt 0:05:14]} Kf7 {[%emt 0:02:16]} (23... Bxg2 24. Rhg1 Nxh4 25. Kf2 $16) (23... Be4 $1 $11 {keeps the balance.}) 24. Bf3 $16 {[%emt 0:02:35]} Bxf3 {[%emt 0:05:47]} 25. gxf3 {[%emt 0:00:42] [#]} Rhe8 $146 {[%emt 0:04:34]} (25... Rh6 $16) ({Predecessor:} 25... Kf6 26. Rhg1 Nf8 27. Ne5 Rb8 28. Rg5 g6 29. Rdg1 Rg8 30. Rd1 Rb6 31. Rd3 Rb7 {½-½ Murdzia,P (2446)-Mikhaletz,L (2471) POL-chT 59th 2003 (9)}) 26. Ne5+ $2 {[%emt 0:18:05]} ({Only move:} 26. Rhg1 $18) 26... Nxe5 $14 {[%emt 0:00:08]} 27. fxe5 {[%emt 0:00:02][%mdl 4096] Endgame KRR-KRR} a5 {[%emt 0:03:06]} 28. Rb1 {[%emt 0:04:02]} Rc6 {[%emt 0:01:46]} 29. Rb2 {[%emt 0:03:01]} Rb8 {[%emt 0:01:41]} 30. Rhb1 {[%emt 0:01:07]} Rcb6 {[%emt 0:04:52]} 31. a3 {[%emt 0:02:26]} (31. Kd3 $14) 31... g5 $1 $11 {[%emt 0:19:25]} 32. hxg5 {[%emt 0:02:21][%cal Og5g6]} Kg6 {[%emt 0:00:03]} 33. f4 {[%emt 0:03:22][%cal Ob3b4]} h4 {[%emt 0:00:50]} 34. Kf3 {[%emt 0:05:29]} Kh5 $1 {[%emt 0:01:48]} 35. g6 {[%emt 0:03:57][%mdl 64] Hoping for g7. Decoy} Kxg6 {[%emt 0:01:55][%mdl 8192]} (35... Kh6 $1 $11 {and Black stays safe.}) 36. Rg1+ $18 {[%emt 0:02:36]} Kf7 {[%emt 0:01:14] [#]} 37. b4 {[%emt 0:00:32][%mdl 512] Rbg2 would be deadly.} axb4 {[%emt 0:02:43]} (37... cxb4 $2 38. Rbg2 Rf8 39. Rg7+ Ke8 40. c5 $18) (37... h3 38. b5) 38. Rbg2 {[%emt 0:00:46] White threatens Rg7+ and mate.} Rf8 {[%emt 0:15:48]} (38... bxa3 $2 39. Rg7+ Ke8 40. Rg8+ Kf7 41. R1g7#) 39. Rg7+ {[%emt 0:00:28]} Ke8 {[%emt 0:00:02]} 40. axb4 {[%emt 0:02:15]} cxb4 {[%emt 0:08:22]} (40... Rxb4 $18 41. Ra1 Rb8) 41. Ra1 {[%emt 0:58:00]} Rb8 {[%emt 0:50:08] [#]} 42. Re7+ $1 {[%emt 0:00:00]} (42. Ra7 Rf7 $11) 42... Kd8 {[%emt 0:00:00]} 43. Ra7 {[%emt 0:00:00] White mates.} h3 {[%emt 0:00:00]} 44. Rexd7+ {[%emt 0:00:00]} Ke8 {[%emt 0:00:00]} 45. Re7+ {[%emt 0:00:00]} Kd8 {[%emt 0:00:00]} 46. c5 {[%emt 0:00:00]} ({Not} 46. Rxe6 Rh8 47. Ree7 h2 48. Red7+ Ke8 49. Re7+ Kf8 50. Rf7+ Ke8 51. Rae7+ (51. Rxf5 h1=Q+ 52. Ke3 Rh3+ 53. Kd4 Qg1+ 54. Ke4 Qe3+ 55. Kd5 Qxa7 56. Rg5 Rd3+ 57. Ke4 Re3+ 58. Kd5 Qb7+ 59. Kd4 Qe4+ 60. Kc5 Rc8+ {[%mdl 64] Skewer} 61. Kb6 Qc6+ 62. Ka5 Ra8+ 63. Kxb4 Qb6#) 51... Kd8 52. Rd7+ (52. Rxf5 h1=Q+ 53. Ke3 Qg1+ 54. Ke4 Qb1+ {[%mdl 64] Skewer} 55. Ke3 Qg1+ 56. Ke4 Qb1+ {[%mdl 64] Skewer, Deflection} 57. Kd5 Qxf5 58. Ra7 b3 59. Rg7 Qxf4 60. Rg1 Rb4) 52... Ke8 53. Rfe7+ Kf8 54. Rf7+ Ke8 55. Rde7+ Kd8 56. Rd7+ (56. Rxf5 h1=Q+ 57. Ke3 Qg1+ 58. Ke4 Qb1+ {[%mdl 64] Skewer, Deflection} 59. Kf3 Qxf5 60. Rg7 Qd3+ 61. Kg2 Ra8) 56... Ke8 $11) 46... h2 {[%emt 0:00:00]} 47. Kg2 {[%emt 0:00:00] Weighted Error Value: White=0.14 (very precise) /Black=0.48} (47. Rxe6 {leads to mate.} h1=Q+ 48. Ke3 Rh8) 1-0

[Event "85th Tata Steel Challengers 2023"]
[Site "Wijk aan Zee"]
[Date "2023.01.17"]
[Round "4.3"]
[White "Adhiban, B.."]
[Black "Sindarov, Javokhir"]
[Result "1/2-1/2"]
[ECO "E81"]
[WhiteElo "2610"]
[BlackElo "2654"]
[Annotator "TA"]
[PlyCount "78"]
[EventDate "2023.01.10"]
[EventType "tourn"]
[EventCountry "NED"]
[SourceTitle "playchess.com"]
[Source "ChessBase"]
[SourceQuality "1"]
[TimeControl "40/6000+30:30/3000+30:900+30"]

{[%evp 18,78,14,11,5,3,7,0,22,19,20,14,10,12,18,14,31,0,0,0,-6,-16,0,0,9,0,0,0,0,0,0,0,0,0,0,-4,-6,-8,0,0,-4,-4,-8,-8,0,0,0,0,8,8,40,40,43,26,26,26,24,26,28,0,17,0,31]} 1. d4 {[%emt 0:00:23]} Nf6 {[%emt 0:00:07]} 2. c4 {[%emt 0:00:03]} g6 {[%emt 0:00:17]} 3. f3 {[%emt 0:00:08]} Bg7 {[%emt 0:01:04]} 4. e4 {[%emt 0:00:06]} d6 {[%emt 0:00:04]} 5. Nc3 {[%emt 0:00:06]} O-O {[%emt 0:00:04]} 6. Be3 {[%emt 0:00:05]} c5 {[%emt 0:00:05]} 7. dxc5 {[%emt 0:00:11]} dxc5 {[%emt 0:00:20]} 8. Qxd8 {[%emt 0:00:09]} Rxd8 {[%emt 0:00:09]} 9. Bxc5 {[%emt 0:00:03]} Nc6 {[%emt 0:00:32]} 10. Rd1 {[%emt 0:00:07]} Rxd1+ {[%emt 0:06:55] E81: King's Indian: Sämisch: 6th move deviations (including 6 Be3 c6).} 11. Kxd1 {[%emt 0:00:02]} Nd7 {[%emt 0:06:39]} 12. Bf2 {[%emt 0:00:03]} Bxc3 {[%emt 0:01:32]} 13. bxc3 {[%emt 0:00:02]} Nde5 {[%emt 0:00:05]} 14. Ne2 {[%emt 0:00:05] [#]} Nxc4 $146 {[%emt 0:05:07]} ({Predecessor:} 14... f5 15. exf5 Bxf5 16. Nd4 Rd8 17. Kc1 Nd3+ 18. Bxd3 Bxd3 19. Nxc6 bxc6 20. Rd1 a6 21. Rxd3 Rxd3 {1-0 Van Foreest,J (2702)-Jones,G (2665) FRA-chT Top 16 Gp Haute 2022 (4.3)}) 15. Nf4 {[%emt 0:06:13]} Nd6 {[%emt 0:32:01]} 16. Nd5 {[%emt 0:04:59]} Bd7 {[%emt 0:14:09]} 17. Bg3 {[%emt 0:03:04][%cal Od5e7]} Rd8 {[%emt 0:01:47]} 18. Bd3 {[%emt 0:12:22]} ({Wrong is} 18. Nxe7+ $2 Nxe7 19. Kc1 Ba4 $19) 18... Be6 {[%emt 0:04:39]} 19. Kc2 {[%emt 0:06:55]} Bxd5 {[%emt 0:01:38]} 20. exd5 {[%emt 0:00:02]} Na5 {[%emt 0:00:06]} 21. Re1 {[%emt 0:05:27]} Kf8 {[%emt 0:00:16]} 22. Bf4 {[%emt 0:00:14]} f6 {[%emt 0:10:25]} 23. h4 {[%emt 0:05:01][%cal Oh4h5]} Ndc4 {[%emt 0:00:10]} 24. Re4 {[%emt 0:07:47]} Nb6 {[%emt 0:19:26]} 25. d6 {[%emt 0:18:30]} e5 {[%emt 0:00:15]} 26. Be3 {[%emt 0:00:07]} Kf7 {[%emt 0:00:02]} 27. h5 {[%emt 0:00:06]} Rxd6 {[%emt 0:00:07]} 28. hxg6+ {[%emt 0:00:10]} hxg6 {[%emt 0:00:03]} 29. Rh4 {[%emt 0:00:08]} f5 {[%emt 0:04:01]} 30. Rh7+ {[%emt 0:01:16]} Kg8 {[%emt 0:00:37]} 31. Rc7 {[%emt 0:00:36]} Rc6 {[%emt 0:00:59]} 32. Bxb6 {[%emt 0:13:00]} axb6 $11 {[%emt 0:00:02][%mdl 4096] Endgame KRB-KRN} 33. Re7 {[%emt 0:00:08]} Kf8 {[%emt 0:00:56]} 34. Rxe5 {[%emt 0:00:06]} Rc5 {[%emt 0:00:02]} 35. Re1 {[%emt 0:07:22]} Nc6 {[%emt 0:00:44]} 36. Rb1 {[%emt 0:02:56]} Ra5 {[%emt 0:00:02]} 37. Bc4 {[%emt 0:00:17]} Rc5 {[%emt 0:00:13]} 38. Bd3 {[%emt 0:02:26]} (38. Bf1 $5 {[%cal Rb1b6]}) 38... Ra5 {[%emt 0:00:02]} 39. Bc4 {[%emt 0:01:31]} Rc5 {[%emt 0:00:03] Weighted Error Value: White=0.04 (flawless) /Black=0.03 (flawless)} 1/2-1/2

[Event "85th Tata Steel Challengers 2023"]
[Site "Wijk aan Zee"]
[Date "2023.01.17"]
[Round "4.4"]
[White "Yilmaz, Mustafa"]
[Black "Warmerdam, Max"]
[Result "1-0"]
[ECO "D45"]
[WhiteElo "2609"]
[BlackElo "2616"]
[Annotator "TA"]
[PlyCount "91"]
[EventDate "2023.01.10"]
[EventType "tourn"]
[EventCountry "NED"]
[SourceTitle "playchess.com"]
[Source "ChessBase"]
[SourceQuality "1"]
[TimeControl "40/6000+30:30/3000+30:900+30"]

{[%evp 23,91,0,0,1,9,6,0,0,0,0,0,-5,0,-13,20,28,31,30,31,4,10,7,51,41,37,51,42,46,51,49,49,31,35,30,34,34,32,13,52,40,32,32,39,37,120,119,409,406,399,388,366,335,429,429,420,241,486,239,268,258,338,260,354,295,275,249,335,306,286,273]} 1. d4 {[%emt 0:00:04]} d5 {[%emt 0:00:05]} 2. c4 {[%emt 0:00:07]} c6 {[%emt 0:00:07]} 3. Nf3 {[%emt 0:00:48]} Nf6 {[%emt 0:00:15]} 4. Nc3 {[%emt 0:01:37]} e6 {[%emt 0:00:06]} 5. e3 {[%emt 0:00:49]} Nbd7 {[%emt 0:00:06]} 6. Be2 {[%emt 0:00:43]} Bd6 {[%emt 0:00:07]} 7. O-O {[%emt 0:01:05]} O-O {[%emt 0:00:21]} 8. b3 {[%emt 0:01:10]} b6 {[%emt 0:00:57]} 9. Bb2 {[%emt 0:02:10]} Bb7 {[%emt 0:00:42]} 10. Qc2 {[%emt 0:02:40]} Qe7 {[%emt 0:03:14]} 11. Rad1 {[%emt 0:06:07]} Rad8 {[%emt 0:05:34]} 12. Rfe1 {[%emt 0:10:55]} Rfe8 {[%emt 0:04:18]} 13. h3 {[%emt 0:06:04] D45: Semi-Slav: 5 e3.} h6 {[%emt 0:02:16]} 14. Bf1 {[%emt 0:00:42]} c5 {[%emt 0:19:38]} 15. cxd5 {[%emt 0:02:21] The position is equal.} exd5 {[%emt 0:01:23] [#]} 16. Ba1 $146 {[%emt 0:05:14]} ({Predecessor:} 16. Qf5 Bb8 17. Bb5 a6 18. Bxd7 Rxd7 19. Na4 Qe4 20. Qxe4 dxe4 21. Nh4 Rd5 22. dxc5 {1-0 Gorshtein,I (2417)-Kardashevskiy,E (2429) Novi Sad TS Mix 227th 2021 (5)}) 16... Rc8 {[%emt 0:11:54]} 17. Qb2 {[%emt 0:08:56]} cxd4 {[%emt 0:17:39]} 18. Nxd4 {[%emt 0:28:38]} Ba3 {[%emt 0:02:52]} ({But not} 18... Qe5 19. f4 Qe7 20. Nf5 $16) (18... Bb4 $5 {[%cal Rb4c3]} 19. Ndb5 d4 20. Rxd4 a6 $15) 19. Qb1 {[%emt 0:02:47]} Bb4 {[%emt 0:00:34]} 20. Rc1 {[%emt 0:01:43]} Ne5 {[%emt 0:10:15]} 21. Rc2 {[%emt 0:03:45]} Ne4 {[%emt 0:10:27][%cal Re4c3]} 22. Rec1 {[%emt 0:00:38][%cal Oc3d5] [#] And now Nxd5! would win.} Bxc3 {[%emt 0:06:27]} 23. Bxc3 {[%emt 0:00:03]} Rxc3 {[%emt 0:00:09]} 24. Rxc3 {[%emt 0:00:06]} Nxc3 {[%emt 0:00:03]} 25. Rxc3 {[%emt 0:00:04]} Rc8 $1 {[%emt 0:00:04]} 26. Rxc8+ {[%emt 0:06:56]} Bxc8 {[%emt 0:00:01]} 27. Qb2 {[%emt 0:03:29]} Bd7 {[%emt 0:00:40]} 28. b4 {[%emt 0:02:42]} Nc6 {[%emt 0:01:53]} 29. Nxc6 {[%emt 0:02:09]} Bxc6 $14 {[%emt 0:00:01][%mdl 4096] Endgame KQB-KQB} 30. Qd4 {[%emt 0:00:40]} Qd7 {[%emt 0:08:07]} 31. Be2 {[%emt 0:04:00]} Qf5 {[%emt 0:04:59]} 32. Bd3 {[%emt 0:00:57] Repels Qb1+} Qd7 {[%emt 0:00:05]} 33. Qf4 {[%emt 0:01:28] Qb8+ is the strong threat.} Kf8 {[%emt 0:00:46]} (33... Qc8 $14) 34. b5 $16 {[%emt 0:01:29] White is more active.} Ba8 $2 {[%emt 0:00:21][%mdl 8192] This move loses the game for Black.} (34... Bb7 $16) 35. Qb8+ $18 {[%emt 0:00:25]} Qe8 {[%emt 0:00:03]} 36. Qxa7 {[%emt 0:00:27]} Qd8 {[%emt 0:00:02]} 37. Be2 {[%emt 0:03:12]} d4 {[%emt 0:00:19]} 38. exd4 {[%emt 0:00:29] [#] Threatens to win with Bc4.} ({Less strong is} 38. Bc4 Bd5 39. Bxd5 Qxd5 $16) 38... Bd5 {[%emt 0:00:10] Dodges Bc4} 39. Bf1 {[%emt 0:01:18]} (39. a4 $142) 39... Be6 $2 {[%emt 0:00:13]} (39... g6 {was necessary.} 40. a3 h5) 40. Qa3+ {[%emt 0:00:42]} (40. a4 $142) 40... Kg8 {[%emt 0:00:01]} 41. Qb2 {[%emt 0:03:54]} Qa8 {[%emt 0:02:23]} 42. a3 {[%emt 0:00:52]} Qe4 {[%emt 0:00:53]} 43. Qd2 {[%emt 0:05:37]} Bd5 {[%emt 0:01:00]} 44. Kh2 {[%emt 0:01:49]} Qb1 {[%emt 0:00:59]} 45. Bd3 {[%emt 0:03:29]} Qb3 {[%emt 0:04:03]} 46. Qc2 {[%emt 0:16:02] Weighted Error Value: White=0.22 (precise) /Black=0.41} 1-0

[Event "85th Tata Steel Challengers 2023"]
[Site "Wijk aan Zee"]
[Date "2023.01.17"]
[Round "4.5"]
[White "Pechac, Jergus"]
[Black "Donchenko, Alexander"]
[Result "0-1"]
[ECO "B22"]
[WhiteElo "2637"]
[BlackElo "2627"]
[Annotator "TA"]
[PlyCount "72"]
[EventDate "2023.01.10"]
[EventType "tourn"]
[EventCountry "NED"]
[SourceTitle "playchess.com"]
[Source "ChessBase"]
[SourceQuality "1"]
[TimeControl "40/6000+30:30/3000+30:900+30"]

{[%evp 13,72,0,6,-6,-12,-1,7,0,0,-6,0,-19,8,-4,14,11,12,12,12,12,12,9,9,9,10,8,16,16,20,12,21,20,14,0,22,21,44,38,28,-31,-7,-25,-27,-152,-142,-162,-166,-179,-181,-272,-271,-411,-395,-583,-566,-576,-572,-564,-533,-730,-584]} 1. e4 {[%emt 0:00:13]} c5 {[%emt 0:00:15]} 2. c3 {[%emt 0:00:20]} Nf6 {[%emt 0:00:44]} 3. e5 {[%emt 0:00:07]} Nd5 {[%emt 0:00:06]} 4. d4 {[%emt 0:00:15]} cxd4 {[%emt 0:00:40]} 5. Bc4 {[%emt 0:00:31]} Nb6 {[%emt 0:03:17]} 6. Bb3 {[%emt 0:00:12]} d6 {[%emt 0:02:43]} 7. Nf3 {[%emt 0:00:08]} Nc6 {[%emt 0:04:03] [#]} 8. a4 $146 {[%emt 0:00:47] B22: Sicilian: 2 c3.} ({Predecessor:} 8. exd6 Qxd6 9. O-O e6 10. cxd4 Be7 11. Nc3 O-O 12. Ne4 Qd8 13. Bf4 Nd5 14. Bd2 b6 15. Qe2 Bb7 16. Rfd1 Rc8 17. Rac1 Rc7 18. Neg5 Nxd4 19. Nxd4 Bxg5 20. Rxc7 Nxc7 21. Bb4 Re8 {½-½ Firouzja,A (2702)-Sarana,A (2655) Titled Tuesday intern op 6th Aug blitz 2019 (7)}) 8... e6 {[%emt 0:12:31]} 9. exd6 {[%emt 0:02:18]} Bxd6 {[%emt 0:06:06]} 10. cxd4 {[%emt 0:00:08] The position is equal.} Nd5 {[%emt 0:03:29]} 11. Nc3 {[%emt 0:00:36]} O-O {[%emt 0:04:09]} 12. O-O {[%emt 0:00:12]} b6 {[%emt 0:08:55]} 13. Re1 {[%emt 0:09:08]} Bb7 {[%emt 0:05:49]} (13... Nce7 {keeps more tension.} 14. Qd3 Bb7 15. Ng5 Nf6) 14. Nxd5 {[%emt 0:10:51]} exd5 {[%emt 0:00:13]} 15. Bg5 {[%emt 0:00:24]} Qd7 {[%emt 0:01:01]} 16. Ne5 {[%emt 0:00:22]} (16. Bxd5 Bxh2+ 17. Kxh2 Qxd5 $17) 16... Qf5 {[%emt 0:08:59][%csl LRe5,LRg5]} 17. Bh4 {[%emt 0:00:53] Bc2 would be deadly.} Nxe5 {[%emt 0:06:32]} 18. dxe5 {[%emt 0:00:06]} Bc5 {[%emt 0:00:07]} (18... Bxe5 $2 19. Bc2 Bxh2+ 20. Kxh2 Qf4+ 21. Bg3 $18) 19. Bc2 {[%emt 0:00:57]} Qf4 {[%emt 0:01:14]} 20. Bg3 {[%emt 0:00:18]} (20. Qh5 $2 g6 21. Qf3 Qxh4 $19) 20... Qh6 {[%emt 0:01:26]} 21. Qf3 {[%emt 0:14:38]} Rad8 {[%emt 0:05:30]} 22. Bf4 {[%emt 0:05:34]} Qh4 {[%emt 0:03:41]} 23. g3 {[%emt 0:06:24]} Qe7 {[%emt 0:00:38]} 24. h4 {[%emt 0:09:21]} d4 {[%emt 0:06:48]} (24... Qd7 {with more complications.} 25. Bg5 d4 26. Qd3 g6) 25. Qd3 {[%emt 0:00:06][%csl Gc2][%cal Rd3h7] [#]} g6 {[%emt 0:00:04]} 26. f3 {[%emt 0:00:04]} ({Don't play} 26. Bg5 Qe6 27. Bxd8 Qh3 $11) ({Better is} 26. Bb3 $11) 26... Qe6 {[%emt 0:01:56] Black wants to play ...Bd5.} (26... Bd5 $5 {[%cal Re7e6]}) 27. Kg2 {[%emt 0:00:20]} (27. Bb3 $5 {[%cal Rb3e6]} Ba6 28. Bxe6 Bxd3 29. Bb3 $11) 27... Bd5 {[%emt 0:01:57]} 28. b3 {[%emt 0:00:21] Repels Bc4} (28. Qd1 $11) 28... Bb4 $17 {[%emt 0:00:49]} 29. Re2 {[%emt 0:00:14]} Rc8 {[%emt 0:00:47][%cal Bd8c8,Bc8c3,Bc3c5][%mdl 32] [#] Threatens to win with ...Rc3.} 30. Rf1 {[%emt 0:00:44]} ({Much weaker is} 30. Qxd4 Bc3 31. Qg1 Bxa1 32. Qxa1 Bxb3 $19) 30... Rfd8 {[%emt 0:01:12]} 31. Kh2 {[%emt 0:01:48]} (31. Bd2 $142 Bxd2 32. Qxd2) 31... Bb7 $19 {[%emt 0:01:41] And now ...Rc3 would win.} 32. Bg5 {[%emt 0:04:33]} (32. Bd2 $142 Bxd2 33. Rxd2) 32... Rc3 {[%emt 0:03:46]} 33. Qb5 {[%emt 0:00:34]} (33. Bxd8 {might work better.} Rxd3 34. Bxd3) 33... Be7 {[%emt 0:01:45] Black is clearly winning.} 34. Bxe7 {[%emt 0:05:08]} Qxe7 {[%emt 0:00:05]} 35. Be4 {[%emt 0:01:18] Prevents Rd5} d3 {[%emt 0:01:33]} 36. Rd2 {[%emt 0:02:58]} Rc5 {[%emt 0:03:20] Weighted Error Value: White=0.37/Black=0.05 (flawless)} 0-1

[Event "85th Tata Steel Challengers 2023"]
[Site "Wijk aan Zee"]
[Date "2023.01.17"]
[Round "4.6"]
[White "Supi, Luis Paulo"]
[Black "Beerdsen, Thomas"]
[Result "1/2-1/2"]
[ECO "B22"]
[WhiteElo "2608"]
[BlackElo "2515"]
[Annotator "TA"]
[PlyCount "79"]
[EventDate "2023.01.10"]
[EventType "tourn"]
[EventCountry "NED"]
[SourceTitle "playchess.com"]
[Source "ChessBase"]
[SourceQuality "1"]
[TimeControl "40/6000+30:30/3000+30:900+30"]

{[%evp 11,79,4,22,-8,18,12,23,-22,24,0,0,-2,14,-19,44,0,68,0,75,91,133,67,65,70,183,82,86,88,0,0,262,285,280,60,61,54,65,69,77,62,79,84,66,64,88,0,0,-12,169,158,1072,612,565,416,405,376,385,383,365,0,0,0,1,-109,-112,-247,-110,-180,-169,-183]} 1. e4 {[%emt 0:00:02]} c5 {[%emt 0:00:06]} 2. c3 {[%emt 0:01:07]} Nf6 {[%emt 0:04:01]} 3. e5 {[%emt 0:00:08]} Nd5 {[%emt 0:00:03]} 4. Nf3 {[%emt 0:00:15]} e6 {[%emt 0:01:35]} 5. d4 {[%emt 0:01:44]} cxd4 {[%emt 0:00:11]} 6. cxd4 {[%emt 0:00:02]} b6 {[%emt 0:00:08] [#]} 7. h4 $146 {[%emt 0:02:28][%cal Bh2h4,Bh4h5,Bh5h6][%mdl 32] B22: Sicilian: 2 c3.} ({Predecessor:} 7. Bb5 Be7 8. Nc3 Nxc3 9. bxc3 Bb7 10. h4 a6 11. Bd3 d6 12. Bf4 Qc7 13. Rh3 Nd7 14. Kf1 dxe5 15. Nxe5 {½-½ Abdusattorov,N (2713)-Wang,H (2722) Gashimov Memorial Rapid 8th 2022 (5)}) 7... Qc7 {[%emt 0:08:23]} 8. h5 {[%emt 0:02:19]} Nc6 {[%emt 0:15:21][%cal Oc6d4]} 9. Na3 {[%emt 0:23:26] White has an edge.} a6 {[%emt 0:05:36] Against Nb5} (9... Bxa3 {is more appropriate.} 10. bxa3 h6) 10. h6 {[%emt 0:03:25]} b5 {[%emt 0:21:13]} 11. Bd2 {[%emt 0:06:02]} Bb7 {[%emt 0:03:40]} 12. Rc1 {[%emt 0:02:34]} Qb6 {[%emt 0:03:01]} ({Black should play} 12... g6 $11) 13. Nc2 {[%emt 0:06:33]} f6 {[%emt 0:07:31]} ({Better is} 13... g6 $11) 14. Bd3 {[%emt 0:03:47]} ({White should try} 14. hxg7 $14 Bxg7 15. exf6 Bxf6 16. Bd3) 14... fxe5 {[%emt 0:03:58]} (14... g6 $1 $11) 15. dxe5 $16 {[%emt 0:06:07]} gxh6 {[%emt 0:02:01]} 16. Be4 {[%emt 0:03:48]} (16. Kf1 $1 $16) 16... Nce7 $14 {[%emt 0:07:36][%cal Od5c3,Bc6e7,Be7d5,Bd5f4][%mdl 32]} 17. Ne3 {[%emt 0:04:46]} Rg8 {[%emt 0:04:32]} (17... Kd8 $14) 18. Nh2 {[%emt 0:06:05]} (18. Bxh7 $18 {has better winning chances.} Rh8 19. Be4) 18... Nf4 $16 {[%emt 0:03:45]} 19. Neg4 $1 {[%emt 0:06:59]} Bxe4 {[%emt 0:01:22]} (19... Nxg2+ $2 20. Bxg2 Bxg2 21. Rg1 $18) 20. Nf6+ {[%emt 0:03:31]} Kd8 $2 {[%emt 0:00:26][%mdl 8192]} (20... Kf7 $11 21. Bxf4 Bxg2 22. Nxg8 Bxh1 23. Nxe7 Bxe7) 21. Bxf4 $18 {[%emt 0:01:02][%csl Gf6][%cal Rd1d7]} Nd5 {[%emt 0:01:03]} (21... Bxg2 $2 22. Qxd7#) 22. Nxe4 {[%emt 0:03:09] A dynamic duo of knights.} ({Only move:} 22. Nxg8 $18 Nxf4 23. O-O) 22... Nxf4 $14 {[%emt 0:00:26]} 23. Qf3 $40 {[%emt 0:03:45][%mdl 128] White attacks.} (23. Nf6 Qb7 24. Qd4 (24. Nxg8 Qe4+ 25. Kf1 Qxg2+ 26. Ke1 Qe4+ 27. Kd2 Qd3+ 28. Ke1 Ng2#) (24. Qd2 $2 Bb4 $19 {[%mdl 64] Decoy}) 24... Nxg2+ 25. Ke2 Rg7) 23... Bb4+ {[%emt 0:02:33]} (23... Nxg2+ $2 24. Kf1 Rc8 25. Rxc8+ Kxc8 26. Qf7 Ne3+ 27. fxe3 $18) 24. Kf1 {[%emt 0:01:15]} Nd5 {[%emt 0:01:57]} 25. Nf6 {[%emt 0:02:16]} Rf8 {[%emt 0:00:25]} 26. Nhg4 {[%emt 0:04:20] Chess con chili. White is more active.} Rc8 {[%emt 0:01:40]} 27. Rxc8+ {[%emt 0:01:37]} Kxc8 {[%emt 0:00:05] [#]} 28. Rxh6 {[%emt 0:02:33]} (28. Nxd5 $6 exd5 29. Nf6 (29. Qxd5 Rf4 $11) 29... Qc7 30. Qxd5 Qc1+ 31. Ke2 Qc2+ 32. Kf3 Qf5+ 33. Kg3 Rxf6 34. Qa8+ Kc7 35. Qa7+ (35. exf6 $2 Bd6+ 36. Kh4 Qg5+ 37. Kh3 Qh5#) 35... Kc8 36. Qa8+ (36. exf6 $2 Bd6+ 37. Kh4 Qg5+ 38. Kh3 Qh5#) 36... Kc7 37. Qa7+ (37. exf6 $2 Bd6+ 38. Kh4 Qg5+ 39. Kh3 Qh5#) 37... Kc8 38. Qa8+ $11 (38. exf6 $2 Bd6+ 39. Kh4 Qg5+ 40. Kh3 Qh5#)) (28. g3 $1 $16) 28... Qd4 $11 {[%emt 0:04:25]} 29. g3 {[%emt 0:02:33]} d6 $2 {[%emt 0:00:34]} (29... Qxb2 $11 {and Black has nothing to worry.} 30. Qb3 Qxb3 31. axb3 Nxf6 32. exf6 (32. Nxf6 Rh8 $15) 32... Bc3) 30. Qe4 {[%emt 0:05:10]} (30. Rxh7 $6 dxe5 31. Qe4 Bc5 $11) (30. Qe2 $6 Nxf6 31. exf6 Qd5 $16) 30... Qxb2 {[%emt 0:02:06]} (30... dxe5 $16 31. Qc2+ Qc4+ 32. Qxc4+ bxc4) 31. Kg2 {[%emt 0:01:35]} Nc7 {[%emt 0:04:11]} 32. exd6 {[%emt 0:00:55]} (32. Nxh7 d5 33. Qg6 Rh8 $11) (32. Qxh7 Rd8 $14) (32. Rxh7 d5 33. Qe3 Qc3 34. Qxc3 (34. Qb6 Rd8 $16) 34... Bxc3 $18) 32... Bxd6 {[%emt 0:00:06]} 33. Qc6 {[%emt 0:00:43] Wards off Qc3. Strongly threatening Qd7+.} ({Worse is} 33. Rxh7 Rxf6 34. Qc6 Rf5 35. Qd7+ (35. Qxd6 Qc2 $11) 35... Kb7 36. Qxd6 Qc2 $11) (33. Qxh7 Rd8 $11) (33. Nxh7 Rh8 $11) 33... Qd4 {[%emt 0:00:54]} 34. Rxh7 {[%emt 0:00:32] Ne4 is the strong threat.} Rd8 {[%emt 0:00:20] [#]} 35. Kh3 $2 {[%emt 0:00:47]} ({White has to play} 35. Ne3 $1 $18 Qxf6 36. Nd5 exd5 37. Rxc7+ Bxc7 38. Qxf6) 35... Qc4 $1 {[%emt 0:00:31]} 36. Qf3 {[%emt 0:00:20]} Qxa2 {[%emt 0:00:41]} ({Much less strong is} 36... Nd5 37. Ne4 $14) 37. Ne4 {[%emt 0:00:13]} (37. Nh6 $11 Qb2 38. Nf7) 37... Qd5 $17 {[%emt 0:00:22]} 38. Rf7 {[%emt 0:01:03] Against Qf5} (38. Ne3 $17 {is a better defense.} Qc6 39. Kg2) 38... Kb8 {[%emt 0:01:12]} (38... a5 $19 {is more deadly. Hoping for ...a4.} 39. Kg2 b4) 39. Kg2 {[%emt 0:00:17]} (39. Ngf6 $17 {was called for.} Qc6 40. Qe3) 39... Qc6 $19 {[%emt 0:00:57]} 40. Ngf6 {[%emt 0:00:42] An exciting game.   Weighted Error Value: White=0.66/Black=0.34} 1/2-1/2